[Event "*** SCC Grand Prix: Titled Tuesday Blitz"]
[Site "Chess.com"]
[Date "2020.08.04"]
[Round "8"]
[White "Isajevsky_Anton"]
[Black "Sekar24"]
[Result "1-0"]
[WhiteElo "2590"]
[BlackElo "2466"]
[TimeControl "180+1"]
[EndTime "15:17:52 PDT"]
[Termination "Isajevsky_Anton won by resignation"]

1. c4 {[%clk 0:03:00.9]} 1... Nf6 {[%clk 0:02:59.1]} 2. Nc3 {[%clk 0:03:00.4]}
2... e5 {[%clk 0:02:59.2]} 3. Nf3 {[%clk 0:02:59.7]} 3... Nc6 {[%clk 0:02:58.8]}
4. e3 {[%clk 0:03:00]} 4... Bb4 {[%clk 0:02:58.9]} 5. Nd5 {[%clk 0:02:59.5]}
5... d6 {[%clk 0:02:51.2]} 6. Nxb4 {[%clk 0:02:57.7]} 6... Nxb4 {[%clk
0:02:50.8]} 7. a3 {[%clk 0:02:58.6]} 7... Nc6 {[%clk 0:02:49.8]} 8. Qc2 {[%clk
0:02:57.5]} 8... e4 {[%clk 0:02:47.4]} 9. Ng1 {[%clk 0:02:52.8]} 9... Ne5 {[%clk
0:02:40.4]} 10. b3 {[%clk 0:02:52.4]} 10... Bf5 {[%clk 0:02:39.7]} 11. Bb2
{[%clk 0:02:51.8]} 11... O-O {[%clk 0:02:38.4]} 12. f4 {[%clk 0:02:49.5]} 12...
Nd3+ {[%clk 0:02:31.2]} 13. Bxd3 {[%clk 0:02:48.8]} 13... exd3 {[%clk
0:02:32.1]} 14. Qc3 {[%clk 0:02:49.4]} 14... Be4 {[%clk 0:02:21.1]} 15. Nf3
{[%clk 0:02:48.6]} 15... Qd7 {[%clk 0:01:51]} 16. O-O {[%clk 0:02:13.1]} 16...
Qg4 {[%clk 0:01:48.7]} 17. Rf2 {[%clk 0:02:12]} 17... h6 {[%clk 0:01:31.7]} 18.
h3 {[%clk 0:01:37.9]} 18... Qg6 {[%clk 0:01:17.1]} 19. Kh2 {[%clk 0:01:36.9]}
19... Qh5 {[%clk 0:01:11.5]} 20. Kh1 {[%clk 0:01:09.7]} 20... c6 {[%clk
0:01:08.3]} 21. Rg1 {[%clk 0:01:02.8]} 21... Rfd8 {[%clk 0:00:58.1]} 22. Qd4
{[%clk 0:00:49.6]} 22... c5 {[%clk 0:00:53.2]} 23. Qc3 {[%clk 0:00:48.6]} 23...
a6 {[%clk 0:00:42.5]} 24. a4 {[%clk 0:00:43.5]} 24... b5 {[%clk 0:00:41.5]} 25.
cxb5 {[%clk 0:00:36.5]} 25... axb5 {[%clk 0:00:42.4]} 26. axb5 {[%clk 0:00:37]}
26... Rab8 {[%clk 0:00:32.5]} 27. b4 {[%clk 0:00:23.1]} 27... Rxb5 {[%clk
0:00:29.9]} 28. bxc5 {[%clk 0:00:23.4]} 28... Rxc5 {[%clk 0:00:28.8]} 29. Qb4
{[%clk 0:00:22.2]} 29... Ng4 {[%clk 0:00:10.6]} 30. Rff1 {[%clk 0:00:22]} 30...
f5 {[%clk 0:00:10.3]} 31. Qd4 {[%clk 0:00:17.4]} 31... Rd7 {[%clk 0:00:08.3]}
32. Bc3 {[%clk 0:00:12.8]} 32... Rd5 {[%clk 0:00:07.1]} 33. Qa4 {[%clk
0:00:11.8]} 33... Rf7 {[%clk 0:00:05.7]} 34. Qe8+ {[%clk 0:00:10.8]} 34... Kh7
{[%clk 0:00:04.9]} 35. Qe6 {[%clk 0:00:11.3]} 35... Rc5 {[%clk 0:00:02.8]} 36.
Bd4 {[%clk 0:00:10.6]} 36... Rc2 {[%clk 0:00:02.5]} 37. Bc3 {[%clk 0:00:10.7]}
37... Ra2 {[%clk 0:00:02]} 38. Qxa2 {[%clk 0:00:10]} 1-0

[Event "*** SCC Grand Prix: Titled Tuesday Blitz"]
[Site "Chess.com"]
[Date "2020.08.04"]
[Round "8"]
[White "Zarikovs1999"]
[Black "Slovak_fighter2000"]
[Result "0-1"]
[WhiteElo "2384"]
[BlackElo "2463"]
[TimeControl "180+1"]
[EndTime "15:17:52 PDT"]
[Termination "Slovak_fighter2000 won by checkmate"]

1. e4 {[%clk 0:03:00.9]} 1... g6 {[%clk 0:02:58.9]} 2. d4 {[%clk 0:02:57.1]}
2... Bg7 {[%clk 0:02:58.7]} 3. Nc3 {[%clk 0:02:57.6]} 3... d6 {[%clk 0:02:57.6]}
4. Be3 {[%clk 0:02:57.8]} 4... a6 {[%clk 0:02:57.3]} 5. Qd2 {[%clk 0:02:52.5]}
5... b5 {[%clk 0:02:57.3]} 6. Bd3 {[%clk 0:02:52.9]} 6... Bb7 {[%clk 0:02:56.9]}
7. a4 {[%clk 0:02:30.2]} 7... b4 {[%clk 0:02:52.4]} 8. Nd5 {[%clk 0:02:30.6]}
8... a5 {[%clk 0:02:47]} 9. c3 {[%clk 0:02:30.3]} 9... e6 {[%clk 0:02:44.2]} 10.
Nf4 {[%clk 0:02:30.7]} 10... Nf6 {[%clk 0:02:29.3]} 11. f3 {[%clk 0:02:26.1]}
11... bxc3 {[%clk 0:02:26.7]} 12. bxc3 {[%clk 0:02:25.1]} 12... O-O {[%clk
0:02:22]} 13. Nge2 {[%clk 0:02:25.4]} 13... Nbd7 {[%clk 0:02:19.2]} 14. O-O
{[%clk 0:02:24.9]} 14... e5 {[%clk 0:02:16.1]} 15. Nh3 {[%clk 0:02:24]} 15... d5
{[%clk 0:02:15.4]} 16. Rab1 {[%clk 0:02:21.8]} 16... Bc6 {[%clk 0:02:09.7]} 17.
exd5 {[%clk 0:02:15.6]} 17... Nxd5 {[%clk 0:02:02.4]} 18. Bh6 {[%clk 0:02:15.9]}
18... Re8 {[%clk 0:01:39.4]} 19. Bb5 {[%clk 0:02:09.7]} 19... Bxb5 {[%clk
0:01:36.3]} 20. Rxb5 {[%clk 0:02:10.6]} 20... N7b6 {[%clk 0:01:28.3]} 21. Bxg7
{[%clk 0:01:52.3]} 21... Kxg7 {[%clk 0:01:27.8]} 22. dxe5 {[%clk 0:01:45.1]}
22... Rxe5 {[%clk 0:01:20.3]} 23. c4 {[%clk 0:01:33.3]} 23... c6 {[%clk
0:00:56.4]} 24. Qd4 {[%clk 0:01:01.2]} 24... f6 {[%clk 0:00:48.1]} 25. Rb2
{[%clk 0:00:54.3]} 25... Nb4 {[%clk 0:00:45.8]} 26. Qc3 {[%clk 0:00:37.2]} 26...
Nxa4 {[%clk 0:00:41.6]} 27. Qa3 {[%clk 0:00:34.3]} 27... Nxb2 {[%clk 0:00:39.7]}
28. Qxb2 {[%clk 0:00:35.2]} 28... Qb6+ {[%clk 0:00:37.1]} 29. Kh1 {[%clk
0:00:32.9]} 29... a4 {[%clk 0:00:31.6]} 30. Rd1 {[%clk 0:00:31.6]} 30... a3
{[%clk 0:00:29.5]} 31. Rd7+ {[%clk 0:00:31.4]} 31... Kg8 {[%clk 0:00:29.4]} 32.
Qb3 {[%clk 0:00:29.4]} 32... Qc5 {[%clk 0:00:21.5]} 33. Rd2 {[%clk 0:00:13.2]}
33... a2 {[%clk 0:00:20.2]} 34. Rxa2 {[%clk 0:00:13.6]} 34... Rxa2 {[%clk
0:00:19.6]} 35. Nhg1 {[%clk 0:00:14.5]} 35... Raxe2 {[%clk 0:00:18.6]} 36. Nxe2
{[%clk 0:00:14.6]} 36... Rxe2 {[%clk 0:00:18.7]} 37. h4 {[%clk 0:00:14.1]} 37...
Re1+ {[%clk 0:00:18]} 38. Kh2 {[%clk 0:00:14.6]} 38... Qg1+ {[%clk 0:00:18]} 39.
Kg3 {[%clk 0:00:15.1]} 39... Qc5 {[%clk 0:00:12.3]} 40. Kh2 {[%clk 0:00:05.3]}
40... Re7 {[%clk 0:00:11.5]} 41. Qd1 {[%clk 0:00:04.4]} 41... Qxc4 {[%clk
0:00:10.5]} 42. Qd8+ {[%clk 0:00:03.8]} 42... Kf7 {[%clk 0:00:10.7]} 43. Qh8
{[%clk 0:00:04.5]} 43... Qxh4+ {[%clk 0:00:10.1]} 44. Kg1 {[%clk 0:00:03.6]}
44... Re1# {[%clk 0:00:11]} 0-1

[Event "*** SCC Grand Prix: Titled Tuesday Blitz"]
[Site "Chess.com"]
[Date "2020.08.04"]
[Round "8"]
[White "dosto07"]
[Black "GianmarcoVaR"]
[Result "0-1"]
[WhiteElo "2288"]
[BlackElo "2446"]
[TimeControl "180+1"]
[EndTime "15:17:58 PDT"]
[Termination "GianmarcoVaR won by resignation"]

1. d4 {[%clk 0:03:00.9]} 1... Nf6 {[%clk 0:02:51.6]} 2. Nf3 {[%clk 0:02:59.9]}
2... e6 {[%clk 0:02:51.4]} 3. g3 {[%clk 0:02:57.7]} 3... b6 {[%clk 0:02:50.6]}
4. Bg2 {[%clk 0:02:57.9]} 4... Bb7 {[%clk 0:02:50.7]} 5. O-O {[%clk 0:02:58.7]}
5... Be7 {[%clk 0:02:51]} 6. c4 {[%clk 0:02:58.9]} 6... O-O {[%clk 0:02:50.1]}
7. Nc3 {[%clk 0:02:59.4]} 7... Ne4 {[%clk 0:02:50.6]} 8. Bd2 {[%clk 0:02:58.8]}
8... Bf6 {[%clk 0:02:48.7]} 9. Nxe4 {[%clk 0:02:52.6]} 9... Bxe4 {[%clk
0:02:48.2]} 10. Bc3 {[%clk 0:02:53.2]} 10... d6 {[%clk 0:02:47.5]} 11. Qd2
{[%clk 0:02:49.8]} 11... Nd7 {[%clk 0:02:44.1]} 12. Rfd1 {[%clk 0:02:46.4]}
12... Qe7 {[%clk 0:02:37.6]} 13. Ne1 {[%clk 0:02:46.3]} 13... Bxg2 {[%clk
0:02:37.4]} 14. Nxg2 {[%clk 0:02:46.4]} 14... a5 {[%clk 0:02:30.6]} 15. b3
{[%clk 0:02:41.8]} 15... Rfd8 {[%clk 0:02:23.9]} 16. Rac1 {[%clk 0:02:41.1]}
16... Rac8 {[%clk 0:01:57.9]} 17. Ne3 {[%clk 0:02:40.4]} 17... Bg5 {[%clk
0:01:55.6]} 18. f4 {[%clk 0:02:33.3]} 18... Bh6 {[%clk 0:01:53.9]} 19. Ng4
{[%clk 0:02:32.1]} 19... f5 {[%clk 0:01:51]} 20. Nxh6+ {[%clk 0:02:31.1]} 20...
gxh6 {[%clk 0:01:51.5]} 21. Qd3 {[%clk 0:02:28.2]} 21... Nf6 {[%clk 0:01:50.2]}
22. d5 {[%clk 0:02:23.1]} 22... Ne4 {[%clk 0:01:50.5]} 23. dxe6 {[%clk
0:02:14.2]} 23... Qxe6 {[%clk 0:01:46.8]} 24. Ba1 {[%clk 0:02:12.9]} 24... Kf7
{[%clk 0:01:44.2]} 25. Qd4 {[%clk 0:02:08.2]} 25... Rg8 {[%clk 0:01:44.5]} 26.
Qd5 {[%clk 0:01:57.8]} 26... h5 {[%clk 0:01:43.1]} 27. Rd3 {[%clk 0:01:48]}
27... h4 {[%clk 0:01:38.8]} 28. Kg2 {[%clk 0:01:44.2]} 28... Rg6 {[%clk
0:01:30.8]} 29. Re3 {[%clk 0:01:25.3]} 29... hxg3 {[%clk 0:01:01.7]} 30. hxg3
{[%clk 0:01:22.8]} 30... Rcg8 {[%clk 0:01:02.2]} 31. Rxe4 {[%clk 0:01:20.5]}
31... fxe4 {[%clk 0:01:01.7]} 32. Rc3 {[%clk 0:01:08.6]} 32... Rh6 {[%clk
0:00:40.4]} 33. Re3 {[%clk 0:01:03.5]} 33... Qxd5 {[%clk 0:00:36.9]} 34. cxd5
{[%clk 0:01:03]} 34... Rh5 {[%clk 0:00:37.4]} 35. Rxe4 {[%clk 0:01:00.8]} 35...
Rxd5 {[%clk 0:00:37.9]} 36. Bc3 {[%clk 0:00:58.5]} 36... Re8 {[%clk 0:00:36.1]}
37. Rxe8 {[%clk 0:00:51.8]} 37... Kxe8 {[%clk 0:00:36.6]} 38. Kf3 {[%clk
0:00:52]} 38... Rc5 {[%clk 0:00:37.1]} 39. Bd4 {[%clk 0:00:49.1]} 39... Rc2
{[%clk 0:00:37.6]} 40. a4 {[%clk 0:00:48.3]} 40... c5 {[%clk 0:00:36.6]} 41. Bh8
{[%clk 0:00:45.6]} 41... d5 {[%clk 0:00:36.4]} 42. g4 {[%clk 0:00:45.6]} 42...
Kf7 {[%clk 0:00:35.7]} 43. f5 {[%clk 0:00:45.1]} 43... d4 {[%clk 0:00:34.1]} 44.
Be5 {[%clk 0:00:37.4]} 44... Rc3+ {[%clk 0:00:34]} 45. Kf4 {[%clk 0:00:35.5]}
45... Rxb3 {[%clk 0:00:34.9]} 46. g5 {[%clk 0:00:33.6]} 46... Re3 {[%clk
0:00:34]} 47. Bc7 {[%clk 0:00:32.9]} 47... Rxe2 {[%clk 0:00:34.2]} 48. Bxb6
{[%clk 0:00:32.7]} 48... d3 {[%clk 0:00:34.7]} 49. Kf3 {[%clk 0:00:32]} 49...
Rc2 {[%clk 0:00:33.8]} 50. Ke3 {[%clk 0:00:31]} 50... c4 {[%clk 0:00:34]} 51.
Bd4 {[%clk 0:00:29.7]} 51... Re2+ {[%clk 0:00:33.4]} 52. Kf3 {[%clk 0:00:29.1]}
52... Re8 {[%clk 0:00:33.3]} 53. Bc3 {[%clk 0:00:27.5]} 53... Rd8 {[%clk
0:00:29.3]} 54. Ke3 {[%clk 0:00:26.8]} 54... Rd5 {[%clk 0:00:29.8]} 55. Bd2
{[%clk 0:00:22.5]} 55... Rxf5 {[%clk 0:00:29.6]} 56. Kd4 {[%clk 0:00:22.6]}
56... Rf2 {[%clk 0:00:28.1]} 57. Kc3 {[%clk 0:00:20.1]} 57... Kg6 {[%clk
0:00:26.8]} 58. Be3 {[%clk 0:00:18.1]} 58... Rc2+ {[%clk 0:00:27]} 59. Kd4
{[%clk 0:00:18.5]} 59... d2 {[%clk 0:00:27.5]} 0-1

[Event "*** SCC Grand Prix: Titled Tuesday Blitz"]
[Site "Chess.com"]
[Date "2020.08.04"]
[Round "8"]
[White "superchess02"]
[Black "OK97"]
[Result "1-0"]
[WhiteElo "2731"]
[BlackElo "2802"]
[TimeControl "180+1"]
[EndTime "15:17:59 PDT"]
[Termination "superchess02 won by checkmate"]

1. e4 {[%clk 0:03:00.9]} 1... g6 {[%clk 0:02:59.8]} 2. d4 {[%clk 0:03:00.7]}
2... Bg7 {[%clk 0:03:00.4]} 3. c4 {[%clk 0:03:01.6]} 3... e6 {[%clk 0:03:00.2]}
4. Nc3 {[%clk 0:03:00.8]} 4... Ne7 {[%clk 0:03:00.4]} 5. Be3 {[%clk 0:03:00.3]}
5... d5 {[%clk 0:03:00]} 6. f3 {[%clk 0:02:58.5]} 6... c5 {[%clk 0:02:57.7]} 7.
Nge2 {[%clk 0:02:54.3]} 7... Nbc6 {[%clk 0:02:52.8]} 8. cxd5 {[%clk 0:02:39.7]}
8... exd5 {[%clk 0:02:52.7]} 9. exd5 {[%clk 0:02:30.5]} 9... Nxd5 {[%clk
0:02:33.6]} 10. Nxd5 {[%clk 0:02:30.6]} 10... Qxd5 {[%clk 0:02:34.5]} 11. Nf4
{[%clk 0:02:26]} 11... Qd8 {[%clk 0:02:30]} 12. dxc5 {[%clk 0:02:25.9]} 12...
Qa5+ {[%clk 0:02:09.4]} 13. Bd2 {[%clk 0:01:57.4]} 13... Qxc5 {[%clk 0:02:08.9]}
14. Qe2+ {[%clk 0:01:58]} 14... Qe5 {[%clk 0:01:52.9]} 15. Bc3 {[%clk
0:01:34.9]} 15... Qxe2+ {[%clk 0:01:50.5]} 16. Nxe2 {[%clk 0:01:35.8]} 16... O-O
{[%clk 0:01:42.6]} 17. Bxg7 {[%clk 0:01:35.7]} 17... Kxg7 {[%clk 0:01:43.5]} 18.
Kf2 {[%clk 0:01:34.6]} 18... Rd8 {[%clk 0:01:36]} 19. b3 {[%clk 0:00:51.8]}
19... Rd2 {[%clk 0:01:10.9]} 20. Ke3 {[%clk 0:00:51.4]} 20... Rb2 {[%clk
0:01:09.6]} 21. Ng3 {[%clk 0:00:30.1]} 21... Nb4 {[%clk 0:00:51.6]} 22. Rd1
{[%clk 0:00:25.9]} 22... Be6 {[%clk 0:00:43.7]} 23. Bc4 {[%clk 0:00:22.6]} 23...
Bxc4 {[%clk 0:00:41.4]} 24. bxc4 {[%clk 0:00:23.5]} 24... Re8+ {[%clk
0:00:41.9]} 25. Kf4 {[%clk 0:00:23.6]} 25... Rc2 {[%clk 0:00:34.4]} 26. Rd7
{[%clk 0:00:21.5]} 26... Rxc4+ {[%clk 0:00:34.2]} 27. Ne4 {[%clk 0:00:22]} 27...
Kf8 {[%clk 0:00:07.4]} 28. Kg3 {[%clk 0:00:19.3]} 28... Re7 {[%clk 0:00:07.8]}
29. Rd8+ {[%clk 0:00:19.5]} 29... Kg7 {[%clk 0:00:08]} 30. Rhd1 {[%clk
0:00:19.4]} 30... Nc6 {[%clk 0:00:08.1]} 31. R8d7 {[%clk 0:00:19.1]} 31... Kf8
{[%clk 0:00:05.7]} 32. Rxe7 {[%clk 0:00:17.8]} 32... Kxe7 {[%clk 0:00:06.6]} 33.
Nd6 {[%clk 0:00:17.9]} 33... Rb4 {[%clk 0:00:07.1]} 34. Nc8+ {[%clk 0:00:14.5]}
34... Kf8 {[%clk 0:00:06.4]} 35. Rd7 {[%clk 0:00:13.8]} 35... Rb2 {[%clk
0:00:04.3]} 36. Nd6 {[%clk 0:00:13.8]} 36... Ne5 {[%clk 0:00:04.7]} 37. Rc7
{[%clk 0:00:13.5]} 37... Rxa2 {[%clk 0:00:04.3]} 38. Kf4 {[%clk 0:00:13.8]}
38... Nd3+ {[%clk 0:00:03.6]} 39. Kg5 {[%clk 0:00:13.4]} 39... Rxg2+ {[%clk
0:00:02]} 40. Kf6 {[%clk 0:00:13.8]} 40... Nf4 {[%clk 0:00:01.2]} 41. Rc8#
{[%clk 0:00:13.9]} 1-0

[Event "*** SCC Grand Prix: Titled Tuesday Blitz"]
[Site "Chess.com"]
[Date "2020.08.04"]
[Round "8"]
[White "VincentKeymer"]
[Black "12teen"]
[Result "1-0"]
[WhiteElo "2874"]
[BlackElo "2674"]
[TimeControl "180+1"]
[EndTime "15:18:00 PDT"]
[Termination "VincentKeymer won by resignation"]

1. Nf3 {[%clk 0:03:00.9]} 1... d5 {[%clk 0:02:59.7]} 2. e3 {[%clk 0:03:00.9]}
2... Nf6 {[%clk 0:03:00.2]} 3. c4 {[%clk 0:03:00.6]} 3... e6 {[%clk 0:03:00.1]}
4. Nc3 {[%clk 0:03:01.2]} 4... b6 {[%clk 0:03:00.4]} 5. cxd5 {[%clk 0:03:00.8]}
5... exd5 {[%clk 0:03:01.3]} 6. g3 {[%clk 0:03:01.4]} 6... Bb7 {[%clk
0:03:01.6]} 7. Bg2 {[%clk 0:03:01.5]} 7... Nbd7 {[%clk 0:03:02.2]} 8. O-O {[%clk
0:03:01.7]} 8... c5 {[%clk 0:03:00.9]} 9. d4 {[%clk 0:03:01.2]} 9... Rc8 {[%clk
0:03:01.3]} 10. b3 {[%clk 0:02:50.6]} 10... cxd4 {[%clk 0:02:52.6]} 11. Qxd4
{[%clk 0:02:35.2]} 11... Bc5 {[%clk 0:02:51.1]} 12. Qd3 {[%clk 0:02:31.4]} 12...
O-O {[%clk 0:02:46.3]} 13. Bb2 {[%clk 0:02:31.2]} 13... Qe7 {[%clk 0:02:41.9]}
14. Nd4 {[%clk 0:02:27.5]} 14... Ne5 {[%clk 0:02:39.3]} 15. Qd2 {[%clk
0:02:14.8]} 15... Ba6 {[%clk 0:02:25.8]} 16. Rfd1 {[%clk 0:01:44.6]} 16... Rfd8
{[%clk 0:02:25.2]} 17. Ncb5 {[%clk 0:00:55]} 17... Ne4 {[%clk 0:02:08.9]} 18.
Qe2 {[%clk 0:00:55.1]} 18... Qd7 {[%clk 0:01:43.8]} 19. a4 {[%clk 0:00:51.5]}
19... Bb4 {[%clk 0:01:35]} 20. Bxe4 {[%clk 0:00:27.9]} 20... dxe4 {[%clk
0:01:35.9]} 21. Nc2 {[%clk 0:00:28.4]} 21... Nf3+ {[%clk 0:01:30.4]} 22. Qxf3
{[%clk 0:00:27.6]} 22... exf3 {[%clk 0:01:30.9]} 23. Rxd7 {[%clk 0:00:27.6]}
23... Rxd7 {[%clk 0:01:31.8]} 24. Nxb4 {[%clk 0:00:28]} 24... Bb7 {[%clk
0:01:07.3]} 25. Nd4 {[%clk 0:00:26.2]} 25... a5 {[%clk 0:01:04.7]} 26. Nd3
{[%clk 0:00:25.8]} 26... f6 {[%clk 0:01:00.8]} 27. h3 {[%clk 0:00:25.9]} 27...
h5 {[%clk 0:00:59.5]} 28. g4 {[%clk 0:00:20.5]} 28... hxg4 {[%clk 0:00:59.1]}
29. hxg4 {[%clk 0:00:21.4]} 29... Bd5 {[%clk 0:00:59.5]} 30. Ne1 {[%clk
0:00:19.9]} 30... Kf7 {[%clk 0:00:56.5]} 31. Kh2 {[%clk 0:00:20.2]} 31... Rh8+
{[%clk 0:00:56.3]} 32. Kg3 {[%clk 0:00:20.7]} 32... Rh1 {[%clk 0:00:56.8]} 33.
Nexf3 {[%clk 0:00:20.6]} 33... Rxa1 {[%clk 0:00:52.8]} 34. Bxa1 {[%clk
0:00:21.5]} 34... Rc7 {[%clk 0:00:52.8]} 35. Bb2 {[%clk 0:00:21.7]} 35... g5
{[%clk 0:00:48.3]} 36. Ne1 {[%clk 0:00:21.4]} 36... Rc8 {[%clk 0:00:46.8]} 37.
f3 {[%clk 0:00:21.8]} 37... Rh8 {[%clk 0:00:46.1]} 38. e4 {[%clk 0:00:21.3]}
38... Be6 {[%clk 0:00:44]} 39. Kg2 {[%clk 0:00:21.9]} 39... Rd8 {[%clk
0:00:42.5]} 40. Nec2 {[%clk 0:00:21.5]} 40... Rc8 {[%clk 0:00:42.2]} 41. Na3
{[%clk 0:00:21.6]} 41... Bd7 {[%clk 0:00:39.9]} 42. Kf2 {[%clk 0:00:21.5]} 42...
Rh8 {[%clk 0:00:39.5]} 43. Kg2 {[%clk 0:00:20.7]} 43... Rc8 {[%clk 0:00:40.1]}
44. Nc4 {[%clk 0:00:21]} 44... Rb8 {[%clk 0:00:33.5]} 45. Kf2 {[%clk 0:00:21.3]}
45... Kg6 {[%clk 0:00:31.1]} 46. Ke3 {[%clk 0:00:21.2]} 46... b5 {[%clk
0:00:31.3]} 47. axb5 {[%clk 0:00:19.1]} 47... Bxb5 {[%clk 0:00:30]} 48. Nxa5
{[%clk 0:00:19.7]} 48... Ba6 {[%clk 0:00:28.4]} 49. Ndc6 {[%clk 0:00:18.2]}
49... Rh8 {[%clk 0:00:24.3]} 50. Ne7+ {[%clk 0:00:17.9]} 50... Kf7 {[%clk
0:00:23.9]} 51. Nd5 {[%clk 0:00:18.8]} 51... Rh2 {[%clk 0:00:23.7]} 52. Bxf6
{[%clk 0:00:18.6]} 52... Ra2 {[%clk 0:00:19.3]} 53. Nc4 {[%clk 0:00:18.1]} 53...
Ke6 {[%clk 0:00:13.9]} 54. Bxg5 {[%clk 0:00:17.5]} 54... Ra1 {[%clk 0:00:11]}
55. Nc7+ {[%clk 0:00:16.8]} 55... Kd7 {[%clk 0:00:11.6]} 56. Nxa6 {[%clk
0:00:17.7]} 56... Kc6 {[%clk 0:00:12.5]} 1-0

[Event "*** SCC Grand Prix: Titled Tuesday Blitz"]
[Site "Chess.com"]
[Date "2020.08.04"]
[Round "8"]
[White "ChessArchitect64"]
[Black "Yoshikrov"]
[Result "0-1"]
[WhiteElo "1885"]
[BlackElo "2134"]
[TimeControl "180+1"]
[EndTime "15:18:02 PDT"]
[Termination "Yoshikrov won by resignation"]

1. e4 {[%clk 0:03:00.8]} 1... c5 {[%clk 0:02:42]} 2. Nf3 {[%clk 0:02:59.3]} 2...
d6 {[%clk 0:02:41.2]} 3. Bb5+ {[%clk 0:02:59.2]} 3... Bd7 {[%clk 0:02:40.9]} 4.
Bxd7+ {[%clk 0:02:58.4]} 4... Qxd7 {[%clk 0:02:41.8]} 5. O-O {[%clk 0:02:57.3]}
5... Nc6 {[%clk 0:02:41.9]} 6. c3 {[%clk 0:02:57.3]} 6... Nf6 {[%clk 0:02:40.5]}
7. Re1 {[%clk 0:02:56.8]} 7... e6 {[%clk 0:02:36.4]} 8. d4 {[%clk 0:02:56.6]}
8... cxd4 {[%clk 0:02:36.9]} 9. cxd4 {[%clk 0:02:56.9]} 9... Be7 {[%clk
0:02:37.4]} 10. Nc3 {[%clk 0:02:56.5]} 10... O-O {[%clk 0:02:37.1]} 11. h3
{[%clk 0:02:53.4]} 11... a6 {[%clk 0:02:36.9]} 12. Be3 {[%clk 0:02:53.3]} 12...
b5 {[%clk 0:02:29.7]} 13. e5 {[%clk 0:02:43.5]} 13... dxe5 {[%clk 0:02:02.5]}
14. dxe5 {[%clk 0:02:29.6]} 14... Nd5 {[%clk 0:01:58.9]} 15. Nxd5 {[%clk
0:02:29.2]} 15... exd5 {[%clk 0:01:56.3]} 16. Bd4 {[%clk 0:02:03.5]} 16... Rac8
{[%clk 0:01:41.9]} 17. Qe2 {[%clk 0:01:52.2]} 17... Nd8 {[%clk 0:01:40.8]} 18.
Rad1 {[%clk 0:01:50.8]} 18... Ne6 {[%clk 0:01:40.1]} 19. Be3 {[%clk 0:01:46.4]}
19... Rfd8 {[%clk 0:01:39.6]} 20. Nd4 {[%clk 0:01:45.8]} 20... Bb4 {[%clk
0:01:27.8]} 21. Rf1 {[%clk 0:01:43.9]} 21... Bc5 {[%clk 0:01:19.5]} 22. f4
{[%clk 0:01:43.3]} 22... Nxd4 {[%clk 0:01:13.6]} 23. Bxd4 {[%clk 0:01:43.3]}
23... Bxd4+ {[%clk 0:01:14]} 24. Rxd4 {[%clk 0:01:43.3]} 24... Rc4 {[%clk
0:01:14.4]} 25. Rd3 {[%clk 0:01:39.8]} 25... Qc6 {[%clk 0:01:09.6]} 26. f5
{[%clk 0:01:33.9]} 26... Re4 {[%clk 0:01:03.9]} 27. Re3 {[%clk 0:01:16.5]} 27...
Qc5 {[%clk 0:01:03.3]} 28. Re1 {[%clk 0:01:12.2]} 28... Rxe5 {[%clk 0:01:03.4]}
29. Kh1 {[%clk 0:01:12]} 29... Qxe3 {[%clk 0:00:57.9]} 30. Qxe3 {[%clk
0:01:12.9]} 30... Rxe3 {[%clk 0:00:58.4]} 31. Rxe3 {[%clk 0:01:13.2]} 31... Kf8
{[%clk 0:00:58.9]} 32. Kg1 {[%clk 0:01:12.8]} 32... f6 {[%clk 0:00:53.8]} 33.
Kf2 {[%clk 0:01:12.6]} 33... Rd6 {[%clk 0:00:51.3]} 34. Ke2 {[%clk 0:01:11.8]}
34... Kf7 {[%clk 0:00:51.7]} 35. Kd3 {[%clk 0:01:11.9]} 35... g6 {[%clk
0:00:52]} 36. fxg6+ {[%clk 0:01:06]} 36... hxg6 {[%clk 0:00:51.7]} 37. Kd4
{[%clk 0:01:06.4]} 37... Rd8 {[%clk 0:00:43.5]} 38. Re2 {[%clk 0:01:02.3]} 38...
g5 {[%clk 0:00:38.2]} 39. Kc5 {[%clk 0:01:00.7]} 39... d4 {[%clk 0:00:38.4]} 40.
Kb6 {[%clk 0:01:00.2]} 40... d3 {[%clk 0:00:38.7]} 41. Rd2 {[%clk 0:01:00.5]}
41... Rd6+ {[%clk 0:00:39]} 42. Kc5 {[%clk 0:01:00.3]} 42... Rd8 {[%clk
0:00:33.7]} 43. Kb6 {[%clk 0:00:59.6]} 43... Rd6+ {[%clk 0:00:33.9]} 44. Kc5
{[%clk 0:00:59.9]} 44... Ke6 {[%clk 0:00:34.4]} 45. g4 {[%clk 0:00:56.5]} 45...
Ke5 {[%clk 0:00:30.5]} 46. b3 {[%clk 0:00:56.7]} 46... Rd5+ {[%clk 0:00:24.5]}
47. Kb6 {[%clk 0:00:56.5]} 47... Ke4 {[%clk 0:00:25]} 48. Kxa6 {[%clk
0:00:56.5]} 48... Ke3 {[%clk 0:00:25.5]} 49. Rd1 {[%clk 0:00:55.4]} 49... Ke2
{[%clk 0:00:25.3]} 50. Rh1 {[%clk 0:00:54.9]} 50... d2 {[%clk 0:00:25.8]} 51. a4
{[%clk 0:00:55.2]} 51... bxa4 {[%clk 0:00:25]} 52. bxa4 {[%clk 0:00:55.6]} 52...
d1=Q {[%clk 0:00:25]} 53. Rxd1 {[%clk 0:00:56]} 53... Kxd1 {[%clk 0:00:25.9]}
54. a5 {[%clk 0:00:55.5]} 54... Ke2 {[%clk 0:00:26.2]} 55. Kb6 {[%clk
0:00:55.8]} 55... Kf3 {[%clk 0:00:25.9]} 56. a6 {[%clk 0:00:56.2]} 56... Rd8
{[%clk 0:00:26.1]} 57. a7 {[%clk 0:00:56.1]} 57... Kg3 {[%clk 0:00:26.3]} 58.
Kb7 {[%clk 0:00:56.4]} 58... Rh8 {[%clk 0:00:26.4]} 59. a8=Q {[%clk 0:00:55.3]}
59... Rxa8 {[%clk 0:00:26]} 60. Kxa8 {[%clk 0:00:55.6]} 60... Kxh3 {[%clk
0:00:26.9]} 0-1